Cogmind - Beta 14 *** ADVENTURER MODE // 2024.09.01 @ 18:09:35 Player: Ms. V3-11A Result: Destroyed by H3-AVX(R) with Subdweller Machine Gun Performance ------------- Evolutions (0) 0 Regions Visited (2) 400 Robots Destroyed (26) 130 Value Destroyed (790) 790 Prototype IDs (7) 140 Alien Tech Used (0) 0 Bonus (-29) -29 TOTAL SCORE: 1431 Bonus ------- Friendly Fire -29 Cogmind --------- Core Integrity 0/250 Matter 213/300 Energy 230/250 System Corruption 1% Temperature Cool (0) Movement Core (550) Ox10 Location -10/Subcaves Parts ------- > --- POWER (1) -------- Ion Engine > --- PROPULSION (2) --- (None) > --- UTILITY (2) ------ Improved Heat Sink Large Storage Unit > --- WEAPON (2) ------- Subdweller Machine Gun Battle Cannon > --- INVENTORY (15) --- Subdweller Power Source Neutrino Core Light Treads Light Treads Light Treads Myomer Leg Large Storage Unit Makeshift Kinetic Plating Scrap Shield Autogun Battle Cannon Rocket Launcher Mining Claw Peak State ------------ > --- POWER ------------ Light Nuclear Core > --- PROPULSION ------- Light Treads Light Treads > --- UTILITY ---------- Improved Heat Sink Large Storage Unit > --- WEAPON ----------- Beamcaster Autogun > --- INVENTORY -------- Ion Engine Neutrino Core Light Treads Light Treads Light Treads Myomer Leg Large Storage Unit Propulsion Shielding Scrap Shield Spread Laser Spread Laser Autogun Rocket Launcher Mining Claw [Rating: 19] Favorites ----------- Power Ion Engine Engine Ion Engine Power Core Light Nuclear Core Propulsion Light Treads Treads Light Treads Leg Aluminum Leg Utility Large Storage Unit Device Heat Sink Storage Large Storage Unit Protection Propulsion Shielding Weapon Autogun Energy Gun Spread Laser Ballistic Gun Autogun Ballistic Cannon Battle Cannon Build | -11 -10 -10 ------- Run | Yrd Mat Sub Slots Evolved . | . . . Power . | . . . Propulsion . | . . . Utility . | . . . Weapon . | . . . Parts Attached 19 | . 9 10 Power 3 | . 1 2 Engine 2 | . 1 1 Core 1 | . . 1 Reactor . | . . . Propulsion 2 | . 2 . Treads 2 | . 2 . Leg . | . . . Wheel . | . . . Hover . | . . . Flight . | . . . Utility 4 | . 3 1 Device 2 | . 1 1 Storage 1 | . 1 . Processor . | . . . Hackware . | . . . Protection 1 | . 1 . Artifact . | . . . Weapon 10 | . 3 7 Energy Gun 3 | . 1 2 Energy Cannon . | . . . Ballistic Gun 6 | . 2 4 Ballistic Cannon 1 | . . 1 Launcher . | . . . Special Weapon . | . . . Impact Weapon . | . . . Slashing Weapon . | . . . Piercing Weapon . | . . . Special Melee Weapon . | . . . Unidentified Prototypes . | . . . Parts Lost 7 | . . 7 Power 2 | . . 2 Propulsion 2 | . . 2 Utility . | . . . Weapon 3 | . . 3 Highest Loss Streak 3 | . . 3 To Critical Strikes . | . . . Average Slot Usage (%) 96 | . 97 93 Engine 11 | . 14 8 Core 2 | . . 5 Treads 14 | . 9 22 Leg 10 | . 18 . Device 9 | . 9 10 Storage 14 | . 14 14 Protection 3 | . 2 3 Energy Gun 8 | . 8 7 Ballistic Gun 17 | . 19 15 Ballistic Cannon 2 | . . 5 Peak Build Rating 19 | . 11 19 Average Rating 11 | . 10 14 On Entrance 7 | 6 6 11 Naked Turns . | . . . Heaviest Build 34 | 13 33 34 Greatest Support 40 | 20 40 40 Greatest Overweight (x) 1 | . 1 1 Average Overweight (x) . | . . . Largest Inventory Capacity 15 | . 15 15 Average Capacity 14 | . 14 15 Most Carried 15 | . 15 15 Average Carried 13 | . 13 14 Final Capacity 15 | 8 15 15 Final Carried 15 | 6 15 14 Class Distribution -------------------- 69% | Mutant 30% | Scavenger-Mutant Dominant Class ---------------- Mutant | -10/Materials Scavenger-Mutant | -10/Subcaves Resources | -11 -10 -10 ----------- Run | Yrd Mat Sub Matter Collected 791 | 200 72 519 Remotely . | . . . Salvage Created 907 | . 344 563 Parts 56 | . 25 31 Haulers Intercepted 1 | . 1 . Recyclers Shooed 1 | . 1 . Parts Field Recycled . | . . . Retrieved Matter . | . . . Parts Self-Destructed 10 | . . 10 Prevented . | . . . Kills | -11 -10 -10 ------- Run | Yrd Mat Sub Combat Hostiles Destroyed 24 | . 11 13 Guns 22 | . 11 11 Cannons 2 | . . 2 Classes Destroyed 5 | . 4 1 Hauler 1 | . 1 . Mechanic 1 | . 1 . Swarmer 6 | . 6 . Grunt 9 | . 5 4 Subdweller 9 | . . 9 Best Kill Streak 4 | . 4 2 Combat Bots Only 3 | . 3 2 Max Kills in Single Turn 1 | . 1 1 Gunslinging . | . . . Exploded . | . . . Melee . | . . . Uniques/NPCs Destroyed . | . . . Combat | -11 -10 -10 -------- Run | Yrd Mat Sub Hostile Shots Fired 144 | . 44 100 Missed 41 | . 12 29 Damage Taken 1474 | . 200 1274 Core 260 | . 42 218 Absorbed by Shields . | . . . Redirected to Shielding 43 | . . 43 Ignored by Resistances 415 | . 69 346 Core Remaining (%) 100 | 100 . . Volleys Fired 94 | . 27 67 Largest 2 | . 2 2 Hottest 98 | . 88 98 Shots Fired 181 | . 54 127 Gun 158 | . 54 104 Cannon 23 | . . 23 Launcher . | . . . Special . | . . . Kinetic 141 | . 42 99 Thermal 40 | . 12 28 Explosive . | . . . Electromagnetic . | . . . Robot Hit Streak 31 | . 17 31 Robot Miss Streak 6 | . 6 3 Penetration Max . | . . . Secondary Targets 4 | . 3 1 Max Gunslinging Chain 1 | . 1 1 Shots Hit Robots 119 | . 40 79 Core Hits 64 | . 28 36 Critical Kills . | . . . Critical Parts Destroyed . | . . . Critical Strikes 2 | . . 2 Burn 2 | . . 2 Melee Attacks . | . . . Impact . | . . . Slashing . | . . . Piercing . | . . . Sneak Attacks . | . . . Combat Hostiles . | . . . Follow-up Attacks . | . . . Damage Inflicted 1983 | . 598 1385 Guns 1847 | . 582 1265 Cannons 120 | . . 120 Explosions . | . . . Melee . | . . . Ramming 16 | . 16 . Kinetic 1327 | . 424 903 Thermal 640 | . 158 482 Explosive . | . . . Electromagnetic . | . . . Impact . | . . . Slashing . | . . . Piercing . | . . . Highest Corruption 1 | . 1 1 Average Corruption 1 | . 1 1 Corruption Purged . | . . . Corruption Blocked . | . . . Effects 13 | . 5 8 Message Errors 3 | . 1 2 Matter Fused 2 | . 1 1 Heat Flow Errors 1 | . 1 . Energy Discharges 3 | . 1 2 Parts Rejected 1 | . . 1 Data Loss (minor) 1 | . . 1 Misfires 1 | . . 1 Alerts 1 | . 1 . Overload Shots . | . . . Overflow Damage . | . . . Projectiles . | . . . Explosions . | . . . Melee . | . . . Knockbacks 4 | . . 4 Impact . | . . . Kinetic 4 | . . 4 Secondary . | . . . Self-Inflicted Damage . | . . . Shots . | . . . Rammed . | . . . Targets Rammed 2 | . 2 . Kicked 2 | . 2 . Crushed . | . . . Highest Temperature 165 | . 135 165 Average Temperature 30 | . 35 25 Received Heat Transfer 537 | . 30 507 Siege Activations . | . . . Robots Corrupted . | . . . Combat Hostiles . | . . . Parts Fried . | . . . Impact Corruptions . | . . . Robots Melted . | . . . Combat Hostiles . | . . . Parts Melted 1 | . . 1 Heat Transferred 1112 | . 195 917 Parts Sabotaged . | . . . Parts Stolen . | . . . Parts Stripped . | . . . Power Chain Reactions . | . . . Alert | -11 -10 -10 ------- Run | Yrd Mat Sub Peak Influence 112 | . 112 . Initial . | . . . Average 31 | . 31 . Maximum Alert Level . | . . . Low Security (%) 100 | . 100 . Level 1 . | . . . Level 2 . | . . . Level 3 . | . . . Level 4 . | . . . Level 5 . | . . . High Security . | . . . Max Security . | . . . Squads Dispatched 1 | . 1 . Investigation 1 | . 1 . Extermination . | . . . Reinforcement . | . . . Assault . | . . . Garrison . | . . . Intercept . | . . . Searches Triggered . | . . . Construction Impeded . | . . . Haulers Reinforced . | . . . Active Scanning Responses . | . . . Cargo Convoy Interrupts . | . . . Stealth | -11 -10 -10 --------- Run | Yrd Mat Sub Distress Signals . | . . . Communications Jammed . | . . . Distress Signals . | . . . Times Spotted 42 | . 19 23 Peak Tracking Total 6 | . 4 6 Tactical Retreats . | . . . Traps | -11 -10 -10 ------- Run | Yrd Mat Sub Traps Triggered 5 | . 4 1 Indirectly . | . . . Trap Hack Attempts . | . . . Triggered . | . . . Disarmed . | . . . Reprogrammed . | . . . Reused . | . . . Traps Extracted . | . . . Installed . | . . . Triggered . | . . . Machines | -11 -10 -10 ---------- Run | Yrd Mat Sub Machines Disabled 1 | . 1 . Max in Single Turn 1 | . 1 . Machines Repaired . | . . . Machines Dismantled . | . . . Machines Sabotaged . | . . . Overloaded Fab Kills . | . . . Hacking | -11 -10 -10 --------- Run | Yrd Mat Sub Machines Accessed 8 | . 8 . Terminals 8 | . 8 . Fabricators . | . . . Repair Stations . | . . . Recycling Units . | . . . Scanalyzers . | . . . Garrison Access . | . . . Total Hacks 31 | . 31 . Successful 18 | . 18 . Failed 12 | . 12 . Catastrophic . | . . . Database Lockouts 1 | . 1 . Manual 24 | . 24 . Terminals 31 | . 31 . Fabricators . | . . . Repair Stations . | . . . Recycling Units . | . . . Scanalyzers . | . . . Garrison Access . | . . . Terminal Hacks 11 | . 11 . Robot Analysis 1 | . 1 . Prototype ID Bank 8 | . 8 . Hauler Manifests 1 | . 1 . Zone Layout 1 | . 1 . Fabricator Hacks . | . . . Repair Station Hacks . | . . . Recycling Unit Hacks . | . . . Scanalyzer . | . . . Garrison Access Hacks . | . . . Unauthorized Hacks 7 | . 7 . Terminals 7 | . 7 . Botnet 2 | . 2 . Skim 5 | . 5 . Fabricators . | . . . Repair Stations . | . . . Recycling Units . | . . . Scanalyzers . | . . . Garrison Access . | . . . Data Cores Recovered . | . . . Used . | . . . Hacking Detections 7 | . 7 . Full Trace Events . | . . . Feedback Events . | . . . Feedback Blocked . | . . . Robot Schematics Acquired . | . . . Robots Built . | . . . Authchips . | . . . Time . | . . . Total Robot Build Rating . | . . . Part Schematics Acquired . | . . . Parts Built . | . . . Authchips . | . . . Time . | . . . Total Part Build Rating . | . . . Parts Repaired . | . . . Time . | . . . Parts Recycled . | . . . Recycled Matter . | . . . Retrieved Matter . | . . . Retrieved Components . | . . . Parts Scanalyzed . | . . . Part Schematics Acquired . | . . . Parts Damaged . | . . . Bothacking | -11 -10 -10 ------------ Run | Yrd Mat Sub Used RIF Installer . | . . . Robots Hacked . | . . . Non-combat . | . . . Combat . | . . . Robot Hacks Applied . | . . . Relay Couplers Released . | . . . Fabnet Peak Effective % . | . . . Robots Rewired . | . . . Allies Hacked . | . . . Hacks Repelled . | . . . Allies | -11 -10 -10 -------- Run | Yrd Mat Sub Total Allies . | . . . Largest Group . | . . . Highest-Rated Group . | . . . Highest-Rated Ally . | . . . Total Orders . | . . . Ally Attacks . | . . . Total Damage . | . . . Kills . | . . . Allies Corrupted . | . . . Allies Melted . | . . . Intel | -11 -10 -10 ------- Run | Yrd Mat Sub Robot Analysis Total 1 | . 1 . Derelict Logs Recovered . | . . . Drone Launches . | . . . Drone Recoveries . | . . . Exploration | -11 -10 -10 ------------- Run | Yrd Mat Sub Turns Passed 3481 | . 2076 1405 Spaces Moved 1337 | 1 705 631 Core . | . . . Treads 658 | . 27 631 Legs 679 | 1 678 . Wheels . | . . . Hover . | . . . Flight . | . . . Fastest Speed 120 | 120 120 160 Average Speed 183 | 120 182 184 Slowest Speed 240 | 120 240 240 Overloaded Moves . | . . . Propulsion Burnouts . | . . . Robots Hopped . | . . . Cave-ins Triggered . | . . . Exploration Rate (%) 44 | 2 96 36 Regions Visited 2 Branch Regions 1 Pre-discovered Areas . | . . . Known Exits Taken 1 | . 1 . Unknown Exits Taken 1 | 1 . . Scrap Searched 4 | . . 4 Spaces Dug . | . . . Terrain Destroyed 1 | . . 1 Melee . | . . . Projectile 1 | . . 1 AOE . | . . . Terrain Rammed . | . . . Walls Destroyed . | . . . Machines Disabled . | . . . Actions | -11 -10 -10 --------- Run | Yrd Mat Sub Total 2204 | . 1449 755 Wait 708 | . 679 29 Move 1335 | . 704 631 Hop . | . . . Pick Up 27 | . 16 11 Fast Attach 5 | . 5 . Attach 7 | . . 7 Detach . | . . . Swap 7 | . 4 3 Drop 19 | . 12 7 Fire 94 | . 27 67 Melee . | . . . Ram . | . . . Kick 2 | . 2 . Crush . | . . . Escape Stasis . | . . . Rewire . | . . . Trap . | . . . Miscellaneous . | . . . Route ------- -11/Scrapyard -10/Materials (discovered 6 exits: *Mat x3 / [*Min x2] / *Sub) -10/Subcaves (discovered 2 exits: Mat x2) History --------- Turn | Location | Event 1 | -11/Scrapyard | Discovered new exit (range 0) 1 | -11/Scrapyard | Entered Materials 47 | -10/Materials | Discovered new exit (range 16) 102 | -10/Materials | Discovered new exit (range 10) 268 | -10/Materials | Discovered new exit (range 7) 331 | -10/Materials | Build established: Mutant 821 | -10/Materials | Discovered new exit (range 16) 1052 | -10/Materials | Central database locked down 1132 | -10/Materials | Identified exit to Materials 1259 | -10/Materials | Identified exit to Subcaves 1259 | -10/Materials | Learned location of 2 exits from Materials 1309 | -10/Materials | Learned location of 2 exits from Mines 1381 | -10/Materials | Learned location of 1 exit from Storage 1475 | -10/Materials | Loaded intel: 1 repair station location 1529 | -10/Materials | Learned Storage emergency access door positions 2077 | -10/Materials | Entered Subcaves 2078 | -10/Subcaves | Identified exit to Materials 2185 | -10/Subcaves | Ambushed by swarm of Subdwellers 2228 | -10/Subcaves | Lost 3 allies 2641 | -10/Subcaves | Core integrity fell below 50% 2676 | -10/Subcaves | Build established: Scavenger-Mutant 2769 | -10/Subcaves | Disturbed a concealed Subdweller 2967 | -10/Subcaves | Lost 3 parts (1n2w) 3370 | -10/Subcaves | Shifting Twisted Machinery released Sub. Optics 3380 | -10/Subcaves | Shifting Twisted Machinery released Shrapnel Trap 3459 | -10/Subcaves | Disturbed a concealed Subdweller 3460 | -10/Subcaves | Disturbed a concealed Subdweller 3467 | -10/Subcaves | Ambushed by Subdweller buried in earth 3469 | -10/Subcaves | Core integrity fell below 20% 3482 | -10/Subcaves | Destroyed by H3-AVX(R) with Subdweller Machine Gun Last Messages --------------- Shrapnel Trap falls loose from the Twisted Machinery. 03456_ Searching scrap... 03456_ Found Mak. Flight Unit. 03456_ Found Sub. Shrapnel Launcher. 03456_ Found 69 Matter. 03457_ Acquired 69 matter. 03459_ 26-2HC(R) angrily emerges from the Twisted Machinery. 03460_ 26-2HC(R): "WORD!" 03460_ Lgt. Treads destroyed. 03460_ UB-021(R) angrily emerges from the Twisted Machinery. 03462_ 26-2HC(R) knocked back. 03465_ 26-2HC(R) affixes Scrap Shield Fragment to Scrap Shield. 03468_ H3-AVX(R): "ARGHSUB!" 03468_ 26-2HC(R) destroyed. 03471_ UB-021(R) knocked back. 03476_ UB-021(R) affixes Scrap Shield Fragment to Scrap Shield. 03478_ System corrupted: Sub. Machine Gun rejected. 03480_ UB-021(R) knocked back. Map ----- +----------------------------------------------------+ | ??????? ##? ??????????????????????????? | | ??????? ## ?????????????????????????? | | ??????? ?????????????????????????? | | ??????? #??????????????????????????? | | ??????? #???????????????????????????? | | ??????? #???????????????????????????? | | ??????? #???????????????????????????? | | ####### #???????????????????????????? | | #???????????????????????????? | | #???????????????????????????? | | #???????????????????????????????? | | #????????????????????????????????? | | #????????????????????????????????? | | ######??????????#????????????????? | | ###???????## #??????????????? | | # ##?###### #??????????????? | | ###### ## ## ##?????????????? | | #???## #?????????????? | | ##?## #??????????????? | | ### ## ####???????????? | | ## ####### ? ##??????????? | | ####### ##?### # ;#??????????? | | # #???#?## #?## ""R ;#??????????? | | # %##?? #??###?# " $& %;##?????????? | | !### #??????# # % $$&] % #?????????? | | &% ####???#" " % $ @ ;#??????????? | | &%& ###""#### "" % R; #????????? | | #"# """"" "#" ;###????????? | | ###% """" """ " """"#" ;#??????????? | | ?? " ###"" " """""" &###;#??????????? | | ?## " #?#####"" "" "" "#??##??????????? | | ### "##?????##" ### "####??????????????? | | ##?##???## #?####?????????????????? | | # # ###"##?#" "###????????????????????? | | ?# """# ### """"##???????????????????? | | ## " ## """"""???????????????????? | | # "## """" ??????????????????? | | # #?# """## ??????????????????? | | # #### ##?"! ??????????????????? | | ## ##???" ???????????????????? | | ####?????????????????????????? | | #????????????????????????????? | | # #????????????????????????????? | | ### ##????????????????????????????? | | ## ####?????????????????????????????? | | ?## ###????????????????????????????????? | | ?## #??????????????????????????????????? | | ## ##??????????????????????????????????? | | # #???????????????????????????????????? | | ##???????????????????????????????????? | +----------------------------------------------------+ Best States ------------- Heat Dissipation 39 Energy Generation 14 Energy Capacity 250 Matter Stores 300 Matter Capacity 300 Sight Range 16 Terrain Scan Density 10 Resistance: KI 20 Resistance: TH 20 Resistance: EX 20 Resistance: EM 20 Resistance: I 20 Resistance: S 20 Resistance: P 20 Propulsion Shielding 33 Evasion (%) 55 Recoil Reduction 2 Offensive Hacking 10 Item Schematics ----------------- None Robot Schematics ------------------ None Fabricated ------------ Nothing Alien Tech Used ----------------- None Achievements -------------- None Challenges ------------ None Game ------ Seed CloakDefenseLoader Manual? 0 Play Time 00:22:28 Cumulative 334.8 hours Start 2024.09.01 @ 17:28:44 End 2024.09.01 @ 18:09:35 Sessions 1 Manual Loads 0 Difficulty Adventurer Special Mode None Game No. 257 Rogue 63 Adventurer 168 Explorer 26 Win Type - Total 1 Types 1/0/0/0/0/0/0/0/0 Lore% 77 Gallery% 75 Achievement% 68 Wizard Run 0 Options --------- Layout 2 ASCII 0 Keyboard 0 Movement Arrows Keybinds 0 Fullscreen 0 Font 18/CogNarrow Map View 64x51 Zoom Use 0% Tactical HUD 1 Map Filters NONE Filters BRIGHTNESS(115)|SATURATION(100)|LOW_CONTRAST(0,16,30) Steam 1 RUN: 2dd5d114-fa41-4cfe-962a-c2ef606f4e0f